Cogmind - Beta 16 *** ADVENTURER MODE // 2025.11.03 @ 12:45:49 Player: nixie Result: Destroyed by Y-45 Defender with Beam Rifle Performance ------------- Evolutions (2) 1000 Regions Visited (3) 600 Robots Destroyed (26) 130 Value Destroyed (799) 799 Prototype IDs (1) 20 Alien Tech Used (0) 0 Bonus (0) 0 TOTAL SCORE: 2549 Bonus ------- None Cogmind --------- Core Integrity 0/550 Matter 181/300 Energy 98/100 System Corruption 0% Temperature Critical (506) Movement Flying (35) Location -8/Materials Parts ------- > --- POWER (1) -------- (None) > --- PROPULSION (4) --- Improved VTOL Module > --- UTILITY (2) ------ (None) > --- WEAPON (4) ------- (None) > --- INVENTORY (5) ---- (None) Peak State ------------ > --- POWER ------------ Nuclear Core > --- PROPULSION ------- Advanced Treads Carbon-fiber Leg Improved VTOL Module > --- UTILITY ---------- Improved Sensor Array Reaction Control System > --- WEAPON ----------- EM Pulse Cannon Heavy Particle Cannon > --- INVENTORY -------- (None) [Rating: 25] Favorites ----------- Power Ion Engine Engine Ion Engine Power Core Nuclear Core Propulsion Light Treads Treads Light Treads Leg Improved Aluminum Leg Flight Unit Flight Unit Utility Small Storage Unit Device Heat Sink Storage Small Storage Unit Protection Hardened Medium Armor Plating Weapon Light Assault Rifle Energy Gun Beam Rifle Energy Cannon Beam Cannon Ballistic Gun Light Assault Rifle Build | -11 -10 -9 -8 ------- Run | Yrd Mat Mat Mat Slots Evolved 4 | . . 2 2 Power . | . . . . Propulsion 2 | . . 2 . Utility . | . . . . Weapon 2 | . . . 2 Parts Attached 41 | 7 10 8 16 Power 7 | 1 3 1 2 Engine 6 | 1 3 1 1 Core 1 | . . . 1 Reactor . | . . . . Propulsion 13 | 2 2 4 5 Treads 6 | 2 . 3 1 Leg 3 | . . . 3 Wheel . | . . . . Hover . | . . . . Flight 4 | . 2 1 1 Utility 8 | 1 1 1 5 Device 5 | . 1 . 4 Storage 2 | 1 . 1 . Processor . | . . . . Hackware . | . . . . Protection 1 | . . . 1 Artifact . | . . . . Weapon 13 | 3 4 2 4 Energy Gun 4 | 1 1 2 . Energy Cannon 4 | . 1 . 3 Ballistic Gun 5 | 2 2 . 1 Ballistic Cannon . | . . . . Launcher . | . . . . Special Weapon . | . . . . Impact Weapon . | . . . . Slashing Weapon . | . . . . Piercing Weapon . | . . . . Special Melee Weapon . | . . . . Unidentified Prototypes 1 | . . . 1 Parts Lost 11 | . 4 1 6 Power 3 | . 1 . 2 Propulsion 4 | . 2 1 1 Utility 1 | . . . 1 Weapon 3 | . 1 . 2 Highest Loss Streak 4 | . 4 1 4 To Critical Strikes . | . . . . Average Backups 1 | 1 . 2 1 Power . | . . . . Propulsion . | . . . . Utility . | . . . . Weapon 1 | . . 1 1 Tool/Special . | . . . . Unused Backups 7 | . 6 1 . Power 1 | . 1 . . Propulsion . | . . . . Utility 3 | . 3 . . Weapon 3 | . 2 1 . Tool/Special . | . . . . Average Slot Usage (%) 60 | . 80 66 33 Engine 9 | . 13 10 5 Treads 12 | . 15 17 . Leg 2 | . . . 8 Flight 4 | . 10 3 2 Device 8 | . 4 10 10 Storage 4 | . 11 3 . Energy Gun 7 | . 9 12 . Energy Cannon 2 | . 5 . 3 Ballistic Gun 6 | . 8 8 2 Peak Build Rating 25 | 6 7 11 25 Average Rating 6 | 5 5 7 9 On Entrance 3 | . 6 6 . Avg Prop Armor Cover (%) 8 | . . . 8 Naked Turns 73 | . . 34 39 Heaviest Build 54 | 13 15 54 21 Greatest Support 60 | 40 40 60 28 Greatest Overweight (x) 3 | . 3 3 2 Average Overweight (x) . | . . . . Largest Inventory Capacity 20 | 8 8 20 5 Average Capacity 7 | 7 7 10 5 Most Carried 5 | 3 4 5 5 Average Carried 1 | 1 . 2 1 Final Capacity 8 | 8 5 5 5 Final Carried 4 | 2 . 4 . Class Distribution -------------------- 71% | Mutant 28% | Scavenger-Mutant Dominant Class ---------------- Mutant | -10/Materials Scavenger-Mutant | -9/Materials Mutant | -8/Materials Resources | -11 -10 -9 -8 ----------- Run | Yrd Mat Mat Mat Matter Collected 565 | 282 100 122 61 Remotely . | . . . . Salvage Created 968 | 78 314 428 148 Parts 56 | 1 20 29 6 Haulers Intercepted . | . . . . Recyclers Shooed 2 | . 1 1 . Parts Field Recycled . | . . . . Retrieved Matter . | . . . . Parts Self-Destructed . | . . . . Prevented . | . . . . Parts Restored . | . . . . Kills | -11 -10 -9 -8 ------- Run | Yrd Mat Mat Mat Combat Hostiles Destroyed 21 | 1 10 7 3 Guns 12 | . 6 5 1 Cannons 6 | . 4 . 2 AOE 1 | 1 . . . Classes Destroyed 7 | 2 2 3 . Recycler 1 | 1 . . . Watcher 4 | . . 4 . Swarmer 5 | . 5 . . Grunt 9 | . 5 2 2 Brawler 1 | . . 1 . Sentry 5 | . . 4 1 Demolisher 1 | 1 . . . Best Kill Streak 7 | 1 7 2 2 Combat Bots Only 7 | 1 7 2 2 Max Kills in Single Turn 1 | 1 1 1 1 Gunslinging . | . . . . Exploded 1 | 1 . . . Melee . | . . . . Uniques/NPCs Destroyed . | . . . . Combat | -11 -10 -9 -8 -------- Run | Yrd Mat Mat Mat Hostile Shots Fired 313 | 8 93 40 172 Missed 80 | . 25 16 39 Hits 233 | 8 68 24 133 Projectile 233 | 8 68 24 133 AOE 8 | 8 . . . Critical Strikes 11 | . 1 1 9 Damage Taken 2669 | 260 506 256 1647 Core 811 | 78 84 96 553 Absorbed by Shields . | . . . . Ignored by Resistances 773 | 70 159 75 469 Core Remaining (%) 59 | 68 35 76 . Volleys Fired 91 | 6 35 35 15 Largest 2 | 2 2 2 2 Hottest 138 | 40 100 112 138 Shots Fired 161 | 12 53 70 26 Gun 123 | 12 34 70 7 Cannon 38 | . 19 . 19 Launcher . | . . . . Special . | . . . . Kinetic 53 | 12 14 20 7 Thermal 89 | . 24 50 15 Explosive . | . . . . Electromagnetic 19 | . 15 . 4 Robot Hit Streak 15 | 3 9 15 13 Robot Miss Streak 4 | 2 2 4 2 Penetration Max . | . . . . Secondary Targets . | . . . . Shots Hit Robots 111 | 7 36 49 19 Core Hits 47 | 3 17 19 8 Critical Kills . | . . . . Critical Parts Destroyed . | . . . . Critical Strikes 5 | . . 5 . Burn 5 | . . 5 . Melee Attacks . | . . . . Impact . | . . . . Slashing . | . . . . Piercing . | . . . . Sneak Attacks . | . . . . Combat Hostiles . | . . . . Follow-up Attacks . | . . . . Damage Inflicted 1596 | 67 462 637 430 Guns 1048 | 67 269 637 75 Cannons 509 | . 193 . 316 Explosions . | . . . . Melee . | . . . . Ramming 39 | . . . 39 Kinetic 324 | 67 76 106 75 Thermal 1021 | . 248 531 242 Explosive . | . . . . Electromagnetic 212 | . 138 . 74 Impact . | . . . . Slashing . | . . . . Piercing . | . . . . Highest Corruption . | . . . . Average Corruption . | . . . . Corruption Purged . | . . . . Corruption Blocked . | . . . . Overload Shots . | . . . . Overflow Damage . | . . . . Projectiles . | . . . . Explosions . | . . . . Melee . | . . . . Knockbacks . | . . . . Impact . | . . . . Kinetic . | . . . . Secondary . | . . . . Self-Inflicted Damage 17 | . . . 17 Shots . | . . . . Rammed 10 | . . . 10 Targets Rammed 10 | . . . 10 Kicked . | . . . . Crushed . | . . . . Highest Temperature 551 | . 515 150 551 Average Temperature 158 | . 222 43 205 Received Heat Transfer 1548 | . 192 132 1224 Effects 13 | . 8 . 5 Shutdowns 1 | . . . 1 Energy Bleed 1 | . 1 . . Interference 1 | . . . 1 Matter Decay 2 | . 1 . 1 Short Circuit 3 | . 2 . 1 Damage (major) 5 | . 4 . 1 Siege Activations . | . . . . Martial Activations . | . . . . Shielding Activations . | . . . . Robots Disrupted . | . . . . Combat Hostiles . | . . . . Robots Corrupted . | . . . . Combat Hostiles . | . . . . Parts Fried . | . . . . Impact Corruptions . | . . . . Robots Melted 2 | . . 2 . Combat Hostiles 2 | . . 2 . Parts Melted 6 | . 1 5 . Heat Transferred 2678 | . 532 1739 407 Parts Sabotaged . | . . . . Parts Stolen . | . . . . Parts Stripped . | . . . . Power Chain Reactions . | . . . . Alert | -11 -10 -9 -8 ------- Run | Yrd Mat Mat Mat Maximum Alert Level . | . . . . Low Security (%) 100 | 100 100 100 100 Level 1 . | . . . . Level 2 . | . . . . Level 3 . | . . . . Level 4 . | . . . . Level 5 . | . . . . High Security . | . . . . Max Security . | . . . . Peak Influence 111 | 30 111 95 85 Initial 34 | . 5 18 34 Average 14 | . 55 17 20 Influence Increases 754 | 35 231 302 186 Destroy 0b10 Robot/C 420 | 20 200 140 60 Destroy 0b10 Robot/NC 25 | 5 . 20 . Destroy Leader 108 | 10 30 58 10 Disable Machine 18 | . . 9 9 Destroy Structure 3 | . 1 . 2 Lose Combat Pursuer 180 | . . 75 105 Influence Decreases 688 | 25 190 258 215 Entered New Map 99 | . 5 33 61 Time Decay 489 | 25 145 215 104 Lost Part 100 | . 40 10 50 Squads Dispatched 5 | . 1 1 3 Investigation 3 | . 1 1 1 Extermination . | . . . . Reinforcement 2 | . . . 2 Assault . | . . . . Garrison . | . . . . Intercept . | . . . . Searches Triggered . | . . . . Construction Impeded 1 | . . . 1 Haulers Reinforced . | . . . . Active Scanning Responses . | . . . . Cargo Convoy Interrupts . | . . . . Stealth | -11 -10 -9 -8 --------- Run | Yrd Mat Mat Mat Distress Signals 3 | . 1 2 . Communications Jammed . | . . . . Distress Signals . | . . . . Times Spotted 60 | 2 16 23 19 Peak Tracking Total 12 | 2 4 7 12 Tactical Retreats 3 | . . 1 2 Traps | -11 -10 -9 -8 ------- Run | Yrd Mat Mat Mat Traps Triggered . | . . . . Indirectly . | . . . . Trap Hack Attempts . | . . . . Triggered . | . . . . Disarmed . | . . . . Reprogrammed . | . . . . Reused . | . . . . Traps Extracted . | . . . . Installed . | . . . . Triggered . | . . . . Machines | -11 -10 -9 -8 ---------- Run | Yrd Mat Mat Mat Machines Disabled 2 | . . 1 1 Max in Single Turn 1 | . . 1 1 Machines Repaired . | . . . . Machines Dismantled . | . . . . Machines Sabotaged . | . . . . Overloaded Fab Kills . | . . . . Hacking | -11 -10 -9 -8 --------- Run | Yrd Mat Mat Mat Machines Accessed 7 | . 3 2 2 Terminals 1 | . 1 . . Fabricators . | . . . . Repair Stations . | . . . . Recycling Units 4 | . 2 1 1 Scanalyzers 2 | . . 1 1 Garrison Access . | . . . . Total Hacks 19 | . 10 5 4 Successful 14 | . 7 4 3 Failed 5 | . 3 1 1 Catastrophic 1 | . 1 . . Database Lockouts . | . . . . Manual . | . . . . Terminals 3 | . 3 . . Fabricators . | . . . . Repair Stations . | . . . . Recycling Units 10 | . 7 2 1 Scanalyzers 6 | . . 3 3 Garrison Access . | . . . . Terminal Hacks 1 | . 1 . . Record 1 | . 1 . . Fabricator Hacks . | . . . . Repair Station Hacks . | . . . . Recycling Unit Hacks 8 | . 6 1 1 Recycle Component 3 | . 3 . . Process 3 | . 1 1 1 Report Inventory 1 | . 1 . . Retrieve Matter 1 | . 1 . . Scanalyzer 5 | . . 3 2 Insert Component 2 | . . 1 1 Analyze 2 | . . 1 1 Retrieve Study 1 | . . 1 . Garrison Access Hacks . | . . . . Unauthorized Hacks . | . . . . Terminals . | . . . . Fabricators . | . . . . Repair Stations . | . . . . Recycling Units . | . . . . Scanalyzers . | . . . . Garrison Access . | . . . . Data Cores Recovered . | . . . . Used . | . . . . Hacking Detections 6 | . 3 1 2 Full Trace Events 4 | . 2 1 1 Feedback Events . | . . . . Feedback Blocked . | . . . . Robot Schematics Acquired . | . . . . Robots Built . | . . . . Authchips . | . . . . Time . | . . . . Total Robot Build Rating . | . . . . Part Schematics Acquired 2 | . . 1 1 Parts Built . | . . . . Authchips . | . . . . Time . | . . . . Total Part Build Rating . | . . . . Part Studies Acquired 1 | . . 1 . Parts Repaired . | . . . . Time . | . . . . Parts Recycled 3 | . 3 . . Recycled Matter 76 | . 32 32 12 Retrieved Matter 32 | . 32 . . Retrieved Components . | . . . . Parts Scanalyzed 2 | . . 1 1 Part Schematics Acquired 2 | . . 1 1 Parts Damaged . | . . . . Bothacking | -11 -10 -9 -8 ------------ Run | Yrd Mat Mat Mat Used RIF Installer . | . . . . Robots Hacked . | . . . . Non-combat . | . . . . Combat . | . . . . Robot Hacks Applied . | . . . . Relay Couplers Released . | . . . . Fabnet Peak Effective % . | . . . . Robots Rewired . | . . . . Allies Hacked . | . . . . Hacks Repelled . | . . . . Allies | -11 -10 -9 -8 -------- Run | Yrd Mat Mat Mat Total Allies . | . . . . Largest Group . | . . . . Highest-Rated Group . | . . . . Highest-Rated Ally . | . . . . Total Orders . | . . . . Ally Attacks . | . . . . Total Damage . | . . . . Kills . | . . . . Allies Corrupted . | . . . . Allies Melted . | . . . . Intel | -11 -10 -9 -8 ------- Run | Yrd Mat Mat Mat Active Infowar (turns) 295 | . . . 295 Sensors 295 | . . . 295 Robot Analysis Total . | . . . . Derelict Logs Recovered . | . . . . Drone Launches . | . . . . Drone Recoveries . | . . . . Exploration | -11 -10 -9 -8 ------------- Run | Yrd Mat Mat Mat Turns Passed 2768 | 1328 363 644 433 Spaces Moved 1468 | 378 235 446 409 Core 187 | 18 8 85 76 Treads 677 | 360 77 232 8 Legs 182 | . . . 182 Wheels . | . . . . Hover . | . . . . Flight 422 | . 150 129 143 Fastest Speed 35 | 50 37 37 35 Average Speed 115 | 154 104 115 84 Slowest Speed 240 | 160 200 240 175 Overloaded Moves . | . . . . Propulsion Burnouts . | . . . . Robots Hopped 5 | . . . 5 Potential Cave-ins . | . . . . Cave-ins Triggered . | . . . . Exploration Rate (%) 32 | 38 34 28 28 Regions Visited 3 Branch Regions . Pre-discovered Areas . | . . . . Known Exits Taken . | . . . . Unknown Exits Taken 3 | 1 1 1 . Scrap Searched . | . . . . Spaces Dug . | . . . . Terrain Destroyed 2 | . . . 2 Melee . | . . . . Projectile 2 | . . . 2 AOE . | . . . . Terrain Rammed . | . . . . Walls Destroyed . | . . . . Machines Disabled . | . . . . Actions | -11 -10 -9 -8 --------- Run | Yrd Mat Mat Mat Total 2396 | 1112 305 510 469 Wait 714 | 713 . 1 . Move 1455 | 377 234 445 399 Hop 5 | . . . 5 Pick Up 48 | 8 15 13 12 Fast Attach . | . . . . Attach 42 | 7 7 8 20 Detach 6 | 1 . 1 4 Swap 5 | . 4 1 . Drop 20 | . 10 6 4 Fire 91 | 6 35 35 15 Melee . | . . . . Ram 10 | . . . 10 Kick . | . . . . Crush . | . . . . Escape Stasis . | . . . . Rewire . | . . . . Trap . | . . . . Miscellaneous . | . . . . Route ------- -11/Scrapyard -10/Materials -9/Materials -8/Materials History --------- Turn | Location | Event 30 | -11/Scrapyard | Discovered new exit (range 15) 1291 | -11/Scrapyard | Assembled infested the area 1329 | -11/Scrapyard | Entered Materials 1354 | -10/Materials | Build established: Mutant 1510 | -10/Materials | Destroyed 7 combat bots 1521 | -10/Materials | Core integrity fell below 50% 1553 | -10/Materials | Lost 4 parts (1p2n1w) 1631 | -10/Materials | Discovered new exit (range 11) 1692 | -10/Materials | Entered another Materials area 1692 | -9/Materials | Evolved 2 slots: Propulsion x2 2118 | -9/Materials | Build established: Scavenger-Mutant 2302 | -9/Materials | Released all parts (8) 2325 | -9/Materials | Discovered new exit (range 15) 2336 | -9/Materials | Entered another Materials area 2336 | -8/Materials | Evolved 2 slots: Weapon x2 2604 | -8/Materials | Build established: Mutant 2636 | -8/Materials | Released all parts (5) 2687 | -8/Materials | Core integrity fell below 50% 2762 | -8/Materials | Core integrity fell below 20% 2769 | -8/Materials | Destroyed by Y-45 Defender with Beam Rifle Last Messages --------------- Critical hit (Burn: +37). EM Pulse Cannon destroyed. Atomic Centrifuge disabled. Critical hit (Burn: +37). Y-45 Defender destroyed. Power failure, Nuclear Core shutdown. Adv. Treads broken. Overheating: Short circuit. U-05 Engineer builds a Wall. Critical hit (Burn: +37). Nuclear Core destroyed. Overheating: System interference. Hvy. Particle Cannon temporarily disabled. Carbon-fiber Leg destroyed. Dropped Broken Adv. Treads. Overheating: Matter decay (-22). Dropped Hvy. Particle Cannon. Overheating: Imp. VTOL Module damaged (-3). R-06 Scavenger collects Lgt. Treads. Critical hit (Burn: +37). Map ----- +----------------------------------------------------+ | ????????????????????????????????? | | ????????????????????????????????? | | ????????????????????????????????? | | ????????????????????????????????? | | ????????????????????????????????? | | ????????????????????????????????? | | ????????????????????????????????? | | ????????????????????????????????? | | ????????????????????????????????? | | ????????????????????????????????? | | ????????????????????????????????? | | ????????????????????????????????? | | ????????????????????????????????? | | ????????????????????????????????? | | ???????????????????????????#####? | | ???????????????????????????# #? | | ?????????????????????????#### ### | | ??????##########?? ????# | | ??????# ]=### #???# ###### | | ??????## "" ;## #???# #????? | | ???????# "" * !### #???# #????? | | ???????# ""%[ #?# ##### ##???? | | ???????# u #?# #???? | | ???????#][!rg u#?# +???? | | ???????#gg! #?# """ #???? | | ???????#@! ggg ### """ #???? | | ???????# gYY u #"" """ #???? | | ???????# g u #"T """ #???? | | ???????# m #"" """ #???? | | ???????####/####?# #???? | | ????????# ##### +???? | | ????????# "" #???? | | ????????# ##???? | | ????????# ##### #????? | | ???#????## ##???# #????? | | ???# ????# #????# #????? | | ???# ???# #????# #????? | | ??## #??# #????# #????? | | ??# ### #????# #????? | | ??# #????# #### # | | ??# ! #????# # | | ??# ##/#####??# + | | ??## ?# #??# ###+####+## | | ???# ??# """ #??## ## # | | ???#???# """ #???# ## ! # | | ???????# """ #???# ## # | | ???????# #???# ## """ """ # | | ?####### #??## ## """ """ # | | # #/######### # """ """ # | | # + # # | +----------------------------------------------------+ Best States ------------- Heat Dissipation 38 Energy Generation 14 Energy Capacity 265 Matter Stores 300 Matter Capacity 300 Sight Range 16 Robot Scan Range 15 Terrain Scan Density 10 Armor Coverage 225 Resistance: KI 20 Resistance: TH 20 Resistance: EX 20 Resistance: EM 20 Resistance: I 20 Resistance: S 20 Resistance: P 20 Evasion (%) 63 Recoil Reduction 3 Particle Charging 15 Offensive Hacking 10 Item Schematics ----------------- Imp. Aluminum Leg | -9/Materials | Scanalyzed Carbon-fiber Leg | -8/Materials | Scanalyzed Robot Schematics ------------------ None Fabricated ------------ Nothing Repaired ---------- Nothing Studied --------- Imp. Aluminum Leg | -9/Materials | Hacked Alien Tech Used ----------------- None Achievements -------------- Curiosity Killed The Cat Item+ Challenges ------------ None Game ------ Seed MetaHypercooledStreamer Manual? 0 Play Time 00:17:42 Cumulative 14.2 hours Start 2025.11.03 @ 12:06:44 End 2025.11.03 @ 12:45:49 Sessions 3 Manual Loads 0 Difficulty Adventurer Special Mode None Game No. 27 Rogue 11 Adventurer 16 Explorer 0 Win Type - Total 0 Types 0/0/0/0/0/0/0/0/0/0 Lore% 18 Gallery% 20 Achievement% 14 Wizard Run 0 Options --------- Layout 1 ASCII 0 Keyboard 0 Movement Arrows Keybinds 0 Fullscreen 1 Font 32/SmallcapsGlow Map View 50x40 Zoom Use 0% Tactical HUD 0 Map Filters NONE Filters NONE Steam 1 RUN: 25fc1367-fba6-4764-94bb-63893fd48318